bitfinex/quotes_ETHUSD_20251224
["timestamp","ask_amount","ask_price","bid_price","bid_amount"]
[1766570605301,4.51583467,2923.4,2922.6,0.895]
[1766570605497,0.9055,2923.1,2922.2,3.42202339]
[1766570605687,0.9055,2923.1,2922.3,0.895]
[1766570606002,0.9055,2922.9,2922.1,4.31713546]
[1766570606683,0.9055,2922.9,2922.2,3.42201129]
[1766570606999,0.9055,2922.9,2922.3,3.42194967]
[1766570607613,0.9055,2922.9,2922.2,3.42203033]
[1766570607977,0.9055,2922.9,2922.1,4.31719261]
[1766570608194,0.9055,2922.8,2922.1,4.31719261]
[1766570608588,0.47593172,2922.9,2921.2,3.44022941]
[1766570608589,0.9055,2922.6,2921.2,3.44022941]
[1766570608803,0.9055,2922.0,2921.1,3.4233679]
[1766570609014,0.9055,2922.0,2921.1,4.3183679]
[1766570609178,0.9055,2922.0,2921.1,0.895]
[1766570609610,0.9055,2922.0,2921.2,3.42325071]
[1766570614194,0.9055,2922.0,2921.2,3.45748321]
[1766570614919,0.9055,2922.0,2921.2,3.42325071]
[1766570616324,0.9055,2922.0,2921.2,6.84650142]
[1766570617220,0.9055,2922.0,2921.2,3.42325071]
[1766570617620,0.9055,2922.0,2921.2,6.88073392]
[1766570617823,0.9055,2922.0,2921.2,6.84650142]
[1766570618121,0.9055,2922.0,2921.3,0.03423133]
[1766570618923,0.9055,2922.0,2921.3,6.8461869]
[1766570621010,0.9055,2922.0,2921.2,6.84650142]
[1766570623016,0.9055,2922.0,2921.4,6.84603272]
[1766570623196,0.9055,2922.0,2921.5,0.93022899]
[1766570625020,0.9577,2922.5,2921.5,0.93022899]
[1766570626360,0.9577,2922.5,2921.6,6.84556406]
[1766570626509,0.9577,2923.1,2921.7,0.03422664]
[1766570626823,0.9577,2923.1,2921.7,0.05128275]
[1766570627418,0.9577,2923.1,2921.7,0.01705611]
[1766570629744,0.9577,2922.9,2921.8,6.84509548]
[1766570629958,0.9577,2922.9,2921.9,0.896]
[1766570630464,0.9577,2922.4,2921.9,0.896]
[1766570630614,0.9577,2922.1,2921.6,0.896]
[1766570631327,0.9577,2922.1,2921.7,3.42266368]
[1766570631910,0.896,2922.8,2921.7,6.84532856]
[1766570631911,0.9577,2922.6,2921.7,6.84532856]
[1766570632521,0.9577,2922.6,2921.7,3.42266368]
[1766570632918,4.51311303,2922.5,2921.7,6.84532856]
[1766570633118,0.9577,2922.4,2921.7,6.84532856]
[1766570633855,0.9577,2922.4,2921.7,3.42266368]
[1766570634861,0.9577,2922.3,2921.6,4.31872359]
[1766570635153,0.9577,2922.1,2921.5,0.896]
[1766570635319,0.9577,2922.1,2921.5,4.31883467]
[1766570639253,0.9577,2922.1,2921.5,4.32083467]
[1766570640252,0.9577,2922.1,2921.5,0.898]
[1766570640457,0.9577,2921.9,2921.5,0.898]
[1766570643254,0.9577,2921.9,2921.5,4.32087917]
[1766570644058,0.9577,2921.9,2921.5,0.898]
[1766570645563,0.9577,2921.9,2921.5,0.002]
[1766570649032,0.9577,2921.9,2921.3,0.896]
[1766570649244,0.9577,2921.9,2921.2,3.42322702]
[1766570649444,7.93546318,2922.0,2921.2,3.42322702]
[1766570649445,0.9572,2921.7,2921.2,3.42322702]
[1766570650128,0.94692955,2921.7,2921.2,3.42322702]
[1766570650330,0.94692955,2921.7,2921.2,3.42324169]
[1766570650743,0.94692955,2921.7,2921.3,3.42310757]
[1766570651371,0.9572,2922.1,2921.3,3.42310757]
[1766570651663,0.43793087,2922.0,2921.3,6.8462411]
[1766570651869,0.9572,2922.2,2921.3,6.8462411]
[1766570652668,0.9572,2922.2,2921.2,6.84650142]
[1766570654878,0.9572,2922.2,2921.2,10.26975213]
[1766570655768,0.9572,2922.2,2921.2,6.84650142]
[1766570656074,0.9572,2922.2,2921.2,10.26975213]
[1766570661082,0.9572,2922.2,2921.2,6.84650142]
[1766570661965,4.51311303,2922.2,2921.2,6.84650142]
[1766570662272,0.9572,2922.1,2921.2,6.84650142]
[1766570662574,7.93523911,2922.2,2921.3,0.896]
[1766570662575,0.9572,2922.0,2921.3,0.896]
[1766570664383,0.9572,2922.0,2921.4,6.84603272]
[1766570666083,0.9572,2922.0,2921.1,3.42535001]
[1766570666258,0.9572,2922.0,2921.4,0.896]
[1766570667467,0.9572,2922.0,2921.1,0.93223367]
[1766570668184,0.9572,2922.0,2921.2,6.84650142]
[1766570668356,0.9572,2922.0,2921.3,0.03423133]
[1766570670375,0.9572,2922.0,2921.4,6.84603272]
[1766570670566,0.9572,2922.0,2921.5,0.03422899]
[1766570670975,0.9572,2922.0,2921.5,0.93022899]
[1766570671963,0.001,2922.2,2921.5,0.93022899]
[1766570672403,0.9901,2922.2,2921.6,6.84556406]
[1766570672967,0.9901,2922.2,2921.6,3.42278203]
[1766570673162,0.9901,2922.2,2921.6,6.84556406]
[1766570673702,4.31758328,2922.7,2921.9,4.51311303]
[1766570673703,0.9891,2922.7,2921.9,4.51311303]
[1766570673867,0.9891,2922.7,2922.2,4.51311303]
[1766570674696,0.9891,2922.7,2922.1,3.42219636]
[1766570674697,0.001,2922.2,2922.1,3.42219636]
[1766570674869,0.9891,2922.7,2922.1,3.42219636]
[1766570675268,0.9891,2922.7,2922.1,6.84439272]
[1766570676401,0.9891,2922.7,2922.2,0.03422079]
[1766570677064,0.9891,2922.7,2922.3,6.8439243]
[1766570677564,0.001,2923.3,2922.4,0.03421845]
[1766570677793,0.9604,2923.2,2922.4,0.93021845]
[1766570678004,0.9604,2923.2,2922.5,4.51311303]
[1766570678195,0.9604,2923.2,2922.6,0.0342161]
[1766570678398,0.9604,2923.2,2922.5,4.51311303]
[1766570679501,0.9604,2923.2,2922.6,3.42161089]
[1766570679899,0.9604,2923.2,2922.6,6.84322178]
[1766570681473,0.001,2922.7,2922.6,3.42161089]
[1766570682474,0.001,2923.3,2922.6,10.28877832]
[1766570682673,0.001,2923.3,2922.6,10.25456222]
[1766570682879,0.001,2923.3,2922.7,0.03421493]
[1766570683079,0.001,2923.3,2922.8,0.896]
[1766570683705,0.001,2923.3,2922.9,3.4212597]
[1766570684779,0.001,2923.3,2922.9,6.8425194]
[1766570685531,0.9614,2923.3,2922.9,3.4212597]
[1766570685683,0.9614,2923.3,2922.2,3.42198861]
[1766570685883,0.9604,2923.2,2922.4,6.8436901]
[1766570686084,0.9604,2923.2,2922.5,0.896]
[1766570688081,0.9604,2923.2,2922.6,3.42161089]
[1766570689005,0.95910058,2923.2,2922.6,3.42161089]
[1766570690216,0.96010058,2923.2,2922.6,3.42161089]
[1766570691092,0.96010058,2923.2,2922.6,4.31661089]
[1766570692682,0.96010058,2923.2,2922.1,3.42418416]
[1766570692683,0.9604,2923.0,2922.1,0.002]
[1766570692916,0.9604,2923.0,2922.3,3.42190906]
[1766570693214,0.9604,2923.0,2922.4,3.42182935]
[1766570694212,0.9604,2923.0,2922.3,3.42195675]
[1766570694412,0.9604,2922.9,2922.3,3.42195675]
[1766570695918,0.9604,2922.9,2922.3,6.8439189]
[1766570696415,0.9604,2922.9,2922.3,3.42195675]
[1766570696616,0.9604,2922.9,2922.3,6.87813852]
[1766570696788,0.9604,2922.9,2922.3,6.8439189]
[1766570697499,0.9604,2922.9,2922.4,0.03421845]
[1766570698012,0.9614,2922.9,2922.4,0.03421845]
[1766570700713,0.9614,2922.9,2922.4,3.42177519]
[1766570700913,0.9614,2922.9,2922.3,3.42190362]
[1766570701090,0.9614,2922.9,2922.4,3.42180716]
[1766570703107,0.9614,2922.9,2922.3,6.84386577]
[1766570704428,0.9614,2922.9,2922.4,0.03421845]
[1766570704632,0.9614,2922.9,2922.3,6.84386577]
[1766570706341,0.9614,2922.9,2922.3,6.84586577]
[1766570709236,0.9614,2922.9,2922.3,3.42390362]
[1766570710045,0.9614,2922.9,2922.3,6.84586577]
[1766570711548,0.9614,2922.9,2922.3,0.002]
[1766570715044,0.9614,2922.9,2922.3,6.8459243]
[1766570715431,0.9614,2922.9,2922.4,0.03421845]
[1766570715634,0.9614,2922.9,2922.4,0.93021845]
[1766570719234,0.9553,2923.1,2922.5,6.84345594]
[1766570720129,0.94503623,2923.1,2922.5,6.84345594]
[1766570724669,0.94503623,2923.1,2922.5,3.42172797]
[1766570725254,0.94503623,2923.1,2922.5,6.84345594]
[1766570726757,0.94503623,2923.1,2922.5,10.26518391]
[1766570727459,0.94503623,2923.1,2922.6,0.0342161]
[1766570727831,0.94503623,2923.1,2922.7,6.84298764]
[1766570730031,0.94603623,2923.1,2922.5,6.84545594]
[1766570730231,0.9563,2923.2,2922.5,10.26718391]
[1766570732040,0.9563,2923.2,2922.5,6.84545594]
[1766570743580,0.9563,2923.2,2922.6,0.0342161]
[1766570743875,0.923,2923.4,2922.5,10.26718391]
[1766570745066,0.923,2923.4,2922.6,0.896]
[1766570747094,0.923,2923.4,2922.7,3.42149382]
[1766570747594,0.924,2923.4,2922.7,6.84298764]
[1766570748096,0.924,2923.4,2922.7,3.42149382]
[1766570751690,0.924,2923.4,2922.7,6.84298764]
[1766570752493,0.924,2923.4,2922.7,3.42149382]
[1766570752674,0.923,2923.3,2922.7,3.42149382]
[1766570753588,0.923,2923.3,2922.6,0.896]
[1766570753589,0.923,2923.3,2922.5,0.002]
[1766570754099,0.923,2923.0,2922.5,0.002]
[1766570755689,0.923,2922.7,2922.3,0.002]
[1766570760101,0.923,2922.4,2921.9,3.42239771]
[1766570760290,0.923,2922.4,2921.8,6.84507128]
[1766570762492,0.923,2922.4,2922.3,0.002]
[1766570764268,3.42106292,2923.1,2922.3,0.002]
[1766570764269,0.982,2923.3,2922.3,0.002]
[1766570766691,0.896,2923.3,2922.3,0.002]
[1766570766998,0.982,2923.2,2922.3,0.002]
[1766570769981,0.983,2923.2,2922.3,0.002]
[1766570771399,0.982,2923.0,2922.3,0.002]
[1766570771602,0.9812,2923.0,2922.3,0.002]
[1766570773724,0.001,2923.2,2922.3,0.002]
[1766570773891,0.982,2923.1,2922.3,0.002]
[1766570785113,0.001,2923.2,2922.4,0.3224]
[1766570785316,0.983,2923.2,2922.4,0.3224]
[1766570785991,0.001,2923.1,2922.4,0.3224]
[1766570786588,0.001,2923.1,2922.6,0.3224]
[1766570786789,0.895,2923.2,2922.3,0.002]
[1766570787012,0.895,2923.2,2922.6,6.84322178]
[1766570787315,0.895,2923.2,2922.8,0.9495]
[1766570789119,0.982,2923.3,2922.8,0.9495]
[1766570789819,0.001,2923.8,2923.1,0.9495]
[1766570790114,0.983,2923.8,2923.1,0.9495]
[1766570791204,0.983,2923.8,2923.2,0.9157]
[1766570791790,0.983,2923.8,2923.3,4.33649157]
[1766570792894,0.9304,2923.2,2922.6,3.42159555]
[1766570793190,0.9304,2923.1,2922.6,3.42159555]
[1766570794123,0.9304,2923.1,2922.5,6.84345594]
[1766570794321,0.9304,2923.1,2922.5,7.70907153]
[1766570794524,0.9304,2923.1,2922.6,0.9157]
[1766570795026,0.9304,2923.1,2922.6,0.9499161]
[1766570795323,0.9304,2923.1,2922.6,0.9157]
[1766570796217,0.9304,2923.1,2922.6,3.42152054]
[1766570796420,0.9304,2923.1,2922.0,4.40521254]
[1766570796623,0.9304,2923.1,2922.5,3.42168419]
[1766570796821,0.9304,2923.1,2922.3,0.002]
[1766570797023,0.7166,2923.0,2922.3,4.35192625]
[1766570798132,0.7166,2923.0,2922.4,3.42183945]
[1766570799831,0.7166,2923.0,2922.4,4.34983945]
[1766570801130,0.7166,2922.9,2922.3,3.42394754]
[1766570801332,0.7166,2922.8,2922.3,3.42394754]
[1766570802331,0.7166,2922.8,2922.3,4.35194754]
[1766570802533,0.7166,2922.8,2922.3,0.93]
[1766570806128,0.7166,2922.8,2922.3,4.35189004]
[1766570809536,1.6126,2922.8,2922.3,4.35189004]
[1766570813169,0.7166,2922.7,2922.3,0.93]
[1766570814347,0.7166,2922.7,2922.3,0.002]
[1766570819759,0.7166,2922.7,2921.9,0.928]
[1766570819950,0.7166,2922.7,2922.0,1.70529937]
[1766570820154,0.7166,2922.7,2922.1,0.928]
[1766570820693,0.7166,2922.7,2922.2,0.03422079]
[1766570821555,0.71460015,2922.6,2922.0,0.9977]
[1766570821762,0.71460015,2922.6,2921.8,6.84499369]
[1766570821763,0.71460015,2922.6,2922.3,0.002]
[1766570822059,0.03420015,2922.6,2921.7,4.42031029]
[1766570822259,0.7968931,2922.5,2921.5,0.002]
[1766570822461,5.44337557,2922.4,2921.5,0.002]
[1766570822629,4.51317542,2922.1,2921.3,0.002]
[1766570822829,0.7968931,2922.5,2921.3,3.42309151]
[1766570822830,0.93020015,2922.0,2921.3,3.42309151]
[1766570823034,0.896,2921.9,2921.3,3.42309151]
[1766570823239,0.03420015,2921.8,2921.3,3.42309151]
[1766570824248,0.03420015,2921.8,2921.3,0.9977]
[1766570824958,0.896,2921.9,2921.4,0.9977]
[1766570825160,0.896,2922.4,2921.6,0.9977]
[1766570825457,0.001,2923.0,2921.8,0.9977]
[1766570825661,0.896,2922.9,2922.0,0.9977]
[1766570825857,0.001,2923.0,2922.2,0.9977]
[1766570826062,0.001,2923.0,2922.4,0.9977]
[1766570826260,0.001,2923.0,2922.5,3.42172797]
[1766570829253,0.001,2923.0,2922.4,0.9977]
[1766570829462,0.43289499,2923.0,2922.5,0.002]
[1766570829840,0.43289499,2923.0,2922.2,3.42203767]
[1766570830252,4.51317542,2922.9,2922.0,3.42225567]
[1766570830453,0.43289499,2923.0,2922.0,3.42225567]
[1766570830454,0.43289499,2923.0,2922.0,4.41990728]
[1766570830661,0.43289499,2923.0,2922.1,0.9977]
[1766570830854,0.001,2923.0,2922.1,0.9977]
[1766570832068,0.001,2923.0,2922.3,0.9977]
[1766570833371,0.001,2923.0,2922.4,7.8413901]
[1766570835271,0.001,2923.0,2922.4,7.83112352]
[1766570836547,0.001,2923.0,2922.5,0.9977]
[1766570837796,0.001,2923.3,2922.7,0.9977]
[1766570838078,0.001,2923.3,2922.9,0.9977]
[1766570839646,0.001,2923.8,2923.3,0.9977]
[1766570839856,0.001,2923.9,2923.4,0.9977]
[1766570840262,0.001,2924.3,2923.5,0.9977]
[1766570840459,0.001,2924.3,2923.7,0.9977]
[1766570840878,0.001,2924.3,2923.4,1.78231876]
[1766570841046,0.001,2924.3,2923.4,1.8927]
[1766570841251,0.001,2924.3,2923.5,0.9977]
[1766570842085,0.001,2924.3,2923.6,3.42044055]
[1766570843591,0.001,2924.3,2923.6,6.8408811]
[1766570844454,0.001,2924.3,2923.6,3.42044055]
[1766570845162,4.51317542,2924.4,2923.5,4.42020739]
[1766570845374,4.94500583,2924.4,2923.4,2.42062028]
[1766570845580,21.495846,2924.3,2923.2,3.42086643]
[1766570845885,21.495846,2924.3,2923.3,3.42075784]
[1766570846176,12.960906,2924.2,2923.2,6.84177502]
[1766570846379,1.63805565,2924.1,2923.2,4.41856643]
[1766570846563,16.754658,2924.2,2923.2,4.41856643]
[1766570846972,14.524414,2924.2,2923.2,7.83947502]
[1766570847882,14.524414,2924.2,2923.2,4.41856643]
[1766570848178,3.41965048,2924.3,2923.2,4.41856643]
[1766570848482,13.556214,2924.2,2923.2,4.41856643]
[1766570848681,1.69758645,2924.1,2923.2,4.41856643]
[1766570848882,13.556214,2924.2,2923.2,4.41856643]
[1766570849880,4.51317542,2924.1,2923.2,0.9977]
[1766570850182,7.92285027,2924.1,2923.2,0.9977]
[1766570851993,3.41993687,2924.1,2923.2,0.9977]
[1766570853211,3.41993687,2924.1,2923.2,4.41860256]
[1766570853402,0.79331123,2924.0,2923.2,4.41860256]
[1766570855258,0.79331123,2924.0,2923.2,6.84181115]
[1766570855458,0.895,2924.2,2923.3,0.9176]
[1766570855758,4.31476301,2924.2,2923.3,0.9176]
[1766570856153,0.895,2924.2,2923.3,0.9176]
[1766570856370,4.31476115,2924.2,2923.3,0.9176]
[1766570857313,0.895,2924.2,2923.3,3.42071416]
[1766570857514,0.43156535,2924.1,2923.4,0.9282]
[1766570859801,0.43156535,2924.1,2923.5,0.9282]
[1766570860110,0.895,2924.2,2923.5,0.9282]
[1766570860311,4.31473963,2924.2,2923.5,0.9282]
[1766570860790,0.895,2924.2,2923.5,0.9282]
[1766570861903,4.31475604,2924.2,2923.5,0.9282]
[1766570864215,4.31474328,2924.2,2923.5,0.9282]
[1766570864410,0.43157433,2924.1,2923.5,0.9282]
[1766570864612,0.895,2924.2,2923.6,0.9282]
[1766570865113,3.42063632,2924.3,2923.3,4.3509314]
[1766570865307,3.42063632,2924.3,2923.3,0.9302]
[1766570865308,6.133958,2924.2,2923.3,0.9302]
[1766570865681,5.57345,2924.2,2923.3,0.9302]
[1766570865881,4.259029,2924.2,2923.3,0.9302]
[1766570866179,0.76796653,2924.1,2923.3,0.9302]
[1766570866382,11.3527075,2924.2,2923.3,0.9302]
[1766570866711,11.3527075,2924.2,2923.3,0.002]
[1766570868917,7.93294146,2924.2,2923.3,0.002]
[1766570869681,11.3527075,2924.2,2923.3,0.002]
[1766570873415,11.3537075,2924.2,2923.3,0.002]
[1766570874289,4.5554185,2924.1,2923.3,0.002]
[1766570875898,9.06533108,2924.1,2923.3,0.002]
[1766570876305,4.5554185,2924.1,2923.3,0.9302]
[1766570876593,1.13547075,2924.1,2923.3,0.9302]
[1766570876986,4.55533726,2924.1,2923.3,0.9302]
[1766570877190,0.90662498,2924.0,2923.3,0.9302]
[1766570879018,0.90662498,2924.0,2923.3,4.35096397]
[1766570879519,0.90662498,2924.0,2923.3,0.9302]
[1766570880798,0.90662498,2924.0,2923.3,4.35098921]
[1766570881319,0.90662498,2924.0,2923.3,0.9302]
[1766570881512,0.43265121,2923.9,2923.3,0.9302]
[1766570885931,3.42020658,2923.8,2923.1,0.002]
[1766570886126,3.42020658,2923.8,2922.5,0.9158]
[1766570886127,4.50991258,2923.3,2922.5,0.9158]
[1766570886299,4.50991258,2923.0,2922.4,0.002]
[1766570887131,4.50991258,2922.7,2922.1,4.33993369]
[1766570887503,5.40491258,2923.0,2922.1,4.33993369]
[1766570887709,0.54049126,2922.9,2922.2,0.9158]
[1766570887903,0.54049126,2922.9,2922.2,4.33782373]
[1766570893510,0.54049126,2922.9,2922.3,0.9158]
[1766570895444,0.54049126,2922.9,2922.3,4.33766113]
[1766570896046,5.40491258,2923.0,2922.3,4.33766113]
[1766570896444,0.2,2923.7,2922.4,0.95001845]
[1766570896644,4.716048,2923.7,2922.5,0.9158]
[1766570896942,0.896,2923.7,2922.7,0.9158]
[1766570897147,1.43659126,2923.7,2922.9,0.9158]
[1766570897648,1.43659126,2923.7,2923.1,0.9158]
[1766570899631,1.43759126,2923.7,2923.1,0.9158]
[1766570900937,1.43759126,2923.7,2923.1,4.33678771]
[1766570901144,0.897,2923.7,2923.1,0.9158]
[1766570903150,0.897,2923.7,2923.1,4.33678494]
[1766570903541,0.001,2923.7,2923.2,0.9158]
[1766570904067,0.001,2923.7,2923.4,0.9158]
[1766570904230,0.001,2924.2,2923.5,0.9158]
[1766570906132,0.001,2924.2,2923.5,4.33632433]
[1766570906343,0.001,2924.2,2923.6,0.9158]
[1766570907660,0.001,2924.2,2923.7,0.03420323]
[1766570907830,0.001,2924.2,2923.8,0.9158]
[1766570908153,0.001,2924.2,2923.8,1.10030044]
[1766570908349,0.001,2924.2,2924.0,0.9158]
[1766570910566,0.001,2924.3,2924.1,0.9158]
[1766570913566,0.001,2924.2,2924.1,0.9158]
[1766570917266,0.001,2924.2,2923.8,4.57524512]
[1766570917465,0.001,2924.2,2923.8,3.60464512]
[1766570917767,0.001,2925.4,2924.1,4.50991258]
[1766570917937,3.341778,2925.3,2924.2,0.9706]
[1766570918135,9.608328,2925.2,2924.2,0.9706]
[1766570918364,8.62262,2925.2,2924.2,0.9706]
[1766570918558,4.50991258,2925.3,2924.2,0.9706]
[1766570918559,1.31325326,2925.1,2924.2,4.3902218]
[1766570918761,1.31325326,2925.1,2924.3,0.9706]
[1766570919142,5.70792,2925.2,2924.3,0.9706]
[1766570919355,0.895,2925.2,2924.5,0.9706]
[1766570920368,0.001,2925.4,2924.5,0.9706]
[1766570920572,0.001,2925.4,2924.6,0.9706]
[1766570923969,0.001,2925.4,2924.6,4.38985998]
[1766570924272,0.90350417,2925.4,2924.7,0.9706]
[1766570924468,0.001,2925.4,2924.7,0.9706]
[1766570924680,3.41933595,2925.4,2924.7,0.9706]
[1766570924886,3.41933595,2925.4,2924.4,4.38999469]
[1766570925180,3.41933595,2925.4,2924.5,3.41937444]
[1766570925352,0.001,2925.4,2924.5,4.38997444]
[1766570925552,0.001,2925.4,2924.5,4.8424673]
[1766570926049,0.001,2925.4,2924.5,0.9706]
[1766570927250,21.789746,2925.3,2924.5,0.9706]
[1766570927666,19.632061,2925.3,2924.5,0.9706]
[1766570927876,14.454118,2925.3,2924.5,0.9706]
[1766570928566,0.895,2925.2,2924.5,0.9706]
[1766570928889,0.895,2925.2,2924.5,3.41936162]
[1766570929056,0.895,2925.2,2924.6,0.9706]
[1766570929461,1.3264346,2925.2,2924.6,0.9706]
[1766570930259,0.001,2925.4,2924.9,4.50991258]
[1766570930459,0.001,2925.5,2925.0,1.00478803]
[1766570930666,0.001,2925.5,2925.0,0.9706]
[1766570930882,0.001,2925.5,2924.9,3.41884629]
[1766570931079,0.001,2925.5,2924.9,4.28919674]
[1766570931278,0.001,2925.5,2924.9,5.25979674]
[1766570931664,0.001,2925.5,2925.0,3.41878345]
[1766570931870,0.001,2925.5,2925.0,4.42357148]
[1766570932082,0.001,2925.5,2925.0,6.87177489]
[1766570932387,0.001,2925.5,2925.2,0.9706]
[1766570932883,0.001,2925.5,2925.3,0.9706]
[1766570933187,0.895,2926.0,2925.3,0.9706]
[1766570933759,0.001,2925.5,2925.3,0.9706]
[1766570936093,16.374029,2926.5,2925.5,0.9706]
[1766570936279,16.374029,2926.5,2925.5,0.96033798]
[1766570936280,4.50092275,2926.1,2925.5,0.96033798]
[1766570936584,4.50092275,2926.1,2925.1,0.895]
[1766570936585,4.50092275,2926.1,2925.1,5.28426257]
[1766570936894,0.895,2926.2,2925.4,0.9706]
[1766570937261,0.895,2926.2,2925.5,0.9706]
[1766570938083,4.50092275,2926.1,2924.2,1.04331991]
[1766570938388,4.31246641,2926.2,2924.2,1.04331991]
[1766570938389,4.636469,2925.9,2925.0,0.9706]
[1766570938563,4.636469,2925.9,2925.0,4.38939065]
[1766570938756,4.636469,2925.9,2924.5,0.895]
[1766570938757,4.636469,2925.9,2925.1,0.9706]
[1766570939170,8.05423701,2925.9,2925.1,0.9706]
[1766570939368,30.0,2925.8,2924.6,0.9706]
[1766570939593,4.50092275,2925.6,2924.6,0.9706]
[1766570940191,4.4906681,2925.6,2924.6,0.9706]
[1766570940763,4.4906681,2925.6,2924.6,4.38984606]
[1766570940963,4.4906681,2925.6,2924.8,0.9706]
[1766570941166,4.4916681,2925.6,2924.8,0.9706]
[1766570941373,0.53866681,2925.5,2924.8,0.9706]
[1766570945861,0.001,2925.6,2924.8,0.9706]
[1766570946407,3.41913651,2925.6,2924.8,0.9706]
[1766570946875,0.001,2925.6,2924.8,0.9706]
[1766570947388,3.41914417,2925.6,2924.8,0.9706]
[1766570947764,0.001,2925.6,2924.9,0.9593]
[1766570948071,0.43238785,2925.6,2924.9,0.9593]
[1766570949603,0.43238785,2925.6,2924.6,0.9593]
[1766570949909,3.85057046,2925.6,2924.8,0.002]
[1766570950908,0.43238785,2925.6,2924.8,0.002]
[1766570953312,3.85049821,2925.6,2924.8,0.002]
[1766570953475,0.81635358,2925.5,2924.8,0.002]
[1766570954107,4.23462789,2925.5,2924.8,0.002]
[1766570954312,4.23462789,2925.5,2924.6,0.9593]
[1766570954313,8.73555064,2925.5,2924.6,0.9593]
[1766570954998,8.73555064,2925.5,2924.5,0.002]
[1766570955204,0.91679385,2925.4,2924.5,0.002]
[1766570955523,0.895,2925.3,2924.5,0.002]
[1766570956293,4.50092275,2925.1,2924.2,0.9593]
[1766570956715,4.31353913,2925.3,2924.3,0.9593]
[1766570956903,1.31496262,2925.2,2924.3,0.9593]
[1766570958410,0.001,2925.6,2924.3,0.9593]
[1766570958411,3.41827341,2925.5,2924.4,0.9593]
[1766570958595,3.41827341,2925.5,2924.5,0.9613]
[1766570959524,7.91919616,2925.5,2924.5,0.9613]
[1766570960519,7.91919616,2925.5,2924.5,4.38065262]
[1766570960699,0.79201962,2925.4,2924.6,0.9593]
[1766570961020,0.79201962,2925.4,2924.6,0.99349271]
[1766570961423,13.475552,2925.5,2924.6,0.99349271]
[1766570961794,6.25727,2925.5,2924.6,0.99349271]
[1766570961991,2.654752,2925.5,2924.6,0.99349271]
[1766570962892,0.001,2925.6,2924.6,0.99349271]
[1766570963218,0.001,2925.6,2924.8,0.9593]
[1766570965329,0.001,2925.6,2925.0,0.9593]
[1766570968001,0.001,2925.6,2924.8,0.9593]
[1766570968826,0.001,2925.6,2924.8,4.378323]
[1766570969005,0.001,2925.6,2924.8,0.9593]
[1766570969933,0.001,2925.6,2924.6,4.37851253]
[1766570970116,1.22428341,2925.6,2924.6,4.37851253]
[1766570970316,1.22428341,2925.6,2924.7,4.37843947]
[1766570970848,0.001,2925.6,2924.8,0.9593]
[1766570972831,0.001,2925.6,2925.0,0.9024]
[1766570973218,0.001,2925.6,2925.2,0.9024]
[1766570973420,0.201,2926.6,2925.1,0.03418686]
[1766570973421,0.001,2926.6,2925.1,0.9024]
[1766570973622,0.001,2926.6,2925.0,0.05124414]
[1766570973623,21.832571,2926.5,2925.4,0.9024]
[1766570973830,2.1833571,2926.4,2925.4,0.9024]
[1766570974012,25.447176,2926.5,2925.4,0.9024]
[1766570974205,19.708571,2926.5,2925.4,0.9024]
[1766570974837,19.708571,2926.5,2925.5,6.8364382]
[1766570975039,19.708571,2926.5,2925.6,0.9024]
[1766570976827,16.974241,2926.5,2925.7,0.03417985]
[1766570977025,1.7871241,2926.5,2925.8,6.83573722]
[1766570977328,15.995325,2926.5,2925.9,0.9726]
[1766570977538,6.79220486,2926.5,2925.8,10.25360583]
[1766570977741,9.744041,2926.5,2926.0,0.9726]
[1766570978041,0.001,2926.6,2926.0,0.9726]
[1766570978526,0.001,2926.6,2926.2,0.9726]
[1766570979134,0.001,2926.6,2926.3,3.41728462]
[1766570980411,0.001,2926.7,2926.3,0.78072321]
[1766570981049,0.001,2926.7,2926.1,3.41746111]
[1766570981232,0.001,2926.7,2926.0,6.83526998]
[1766570981539,0.001,2926.7,2926.0,7.80786998]
[1766570982244,0.001,2926.7,2926.1,0.9726]
[1766570982446,0.001,2926.7,2926.1,1.00677518]
[1766570982611,1e-08,2926.8,2926.5,0.9726]
[1766570983315,1e-08,2926.8,2926.6,4.38953432]
[1766570983642,1e-08,2926.8,2926.6,0.9726]
[1766570984352,0.001,2927.8,2926.7,1.02382428]
[1766570984515,0.001,2927.8,2926.9,0.9726]
[1766570985307,0.001,2927.8,2927.0,6.83293474]
[1766570985513,0.001,2927.8,2927.1,1.0067635]
[1766570986259,0.001,2927.8,2927.4,0.9726]
[1766570986547,30.0,2928.7,2927.4,0.9726]
[1766570987136,28.83187,2928.7,2927.4,0.9726]
[1766570987332,0.001,2927.8,2927.6,0.9726]
[1766570987740,8.072123,2928.7,2927.7,0.9726]
[1766570987947,10.607505,2928.5,2927.7,0.9726]
[1766570988332,8.482505,2928.5,2927.7,0.9726]
[1766570989533,3.41483403,2928.4,2927.7,0.9726]
[1766570989737,3.41476088,2928.5,2927.7,0.9726]
[1766570991249,19.822926,2928.6,2927.7,0.9726]
[1766570991443,2.32374102,2928.5,2927.7,0.9726]
[1766570991638,17.355693,2928.6,2927.7,0.9726]
[1766570992320,4.30837135,2928.8,2927.8,0.9726]
[1766570992519,6.131234,2928.7,2927.8,0.9726]
[1766570993547,9.5457684,2928.7,2927.8,0.9726]
[1766570993748,1.38541398,2928.6,2927.8,0.9726]
[1766570993936,2.314456,2928.6,2927.8,0.9726]
[1766570994321,3.4145344,2928.7,2927.8,0.9726]
[1766570994521,2.277625,2928.6,2927.8,0.9726]
[1766570994745,12.278838,2928.5,2927.8,0.9726]
[1766570994922,8.573838,2928.5,2927.8,0.9726]
[1766570996052,11.9885637,2928.5,2927.8,0.9726]
[1766570996246,1.19895637,2928.4,2927.8,0.9726]
[1766570996447,11.996838,2928.5,2927.8,0.9726]